[Event "Titled Tuesday Blitz October 11 Early 2022"]
[White "Gulevich, Artem"]
[Black "Grot, Blazej"]
[WhiteFideId "24119580"]
[BlackFideId "21835845"]
[WhiteElo "2218"]
[BlackElo "1739"]
[Result "1-0"]
[Round "05"]
[TimeControl "180+1"]
[Date "2022.10.12"]
[WhiteClock "0:02:06"]
[BlackClock "0:01:35"]

1. Nf3 {[%clk 0:03:00]}  c5 {[%clk 0:02:59]} 2. b3 {[%clk 0:02:59]}  e6 {[%clk 0:02:59]} 3. Bb2 {[%clk 0:02:59]}  Nf6 {[%clk 0:02:59]} 4. e3 {[%clk 0:03:00]}  Nc6 {[%clk 0:02:59]} 5. Be2 {[%clk 0:03:01]}  d6 {[%clk 0:02:59]} 6. O-O {[%clk 0:03:01]}  Be7 {[%clk 0:03:00]} 7. d4 {[%clk 0:03:02]}  b6 {[%clk 0:03:00]} 8. Nbd2 {[%clk 0:03:02]}  Bb7 {[%clk 0:03:00]} 9. c4 {[%clk 0:03:02]}  O-O {[%clk 0:03:00]} 10. Rc1 {[%clk 0:03:03]}  d5 {[%clk 0:02:58]} 11. Qc2 {[%clk 0:03:03]}  Rc8 {[%clk 0:02:58]} 12. Qb1 {[%clk 0:03:04]}  cxd4 {[%clk 0:02:50]} 13. Nxd4 {[%clk 0:03:03]}  Nxd4 {[%clk 0:02:50]} 14. Bxd4 {[%clk 0:03:04]}  Bc5 {[%clk 0:02:48]} 15. Bb2 {[%clk 0:03:02]}  Qe7 {[%clk 0:02:46]} 16. Rfd1 {[%clk 0:02:58]}  Rfd8 {[%clk 0:02:45]} 17. h3 {[%clk 0:02:57]}  d4 {[%clk 0:02:44]} 18. exd4 {[%clk 0:02:54]}  Bxd4 {[%clk 0:02:43]} 19. Bf3 {[%clk 0:02:54]}  Bxf3 {[%clk 0:02:39]} 20. Nxf3 {[%clk 0:02:54]}  Bxb2 {[%clk 0:02:39]} 21. Qxb2 {[%clk 0:02:55]}  Rd6 {[%clk 0:02:34]} 22. Rxd6 {[%clk 0:02:49]}  Qxd6 {[%clk 0:02:33]} 23. Qe5 {[%clk 0:02:50]}  Qxe5 {[%clk 0:02:31]} 24. Nxe5 {[%clk 0:02:51]}  Rd8 {[%clk 0:02:30]} 25. Nc6 {[%clk 0:02:49]}  Rd7 {[%clk 0:02:30]} 26. g3 {[%clk 0:02:43]}  h6 {[%clk 0:02:29]} 27. b4 {[%clk 0:02:33]}  Ne4 {[%clk 0:02:27]} 28. Rc2 {[%clk 0:02:25]}  a6 {[%clk 0:02:17]} 29. Nb8 {[%clk 0:02:16]}  a5 {[%clk 0:01:50]} 30. Nxd7 {[%clk 0:02:15]}  axb4 {[%clk 0:01:48]} 31. Nxb6 {[%clk 0:02:12]}  Nc5 {[%clk 0:01:45]} 32. Rb2 {[%clk 0:02:07]}  Nd3 {[%clk 0:01:44]} 33. Rb3 {[%clk 0:02:07]}  Nc5 {[%clk 0:01:34]} 34. Rxb4 {[%clk 0:02:06]}  Nd3 {[%clk 0:01:35]} 35. Rb5 {[%clk 0:02:06]} 1-0


[Site "https://www.chess.com"]

[Event "Titled Tuesday Blitz October 11 Early 2022"]
[White "Halkias, Stelios"]
[Black "Principe, Gerson"]
[WhiteFideId "4201809"]
[BlackFideId "3804550"]
[WhiteElo "2453"]
[BlackElo "2280"]
[Result "1-0"]
[Round "05"]
[TimeControl "180+1"]
[Date "2022.10.12"]
[WhiteClock "0:00:13"]
[BlackClock "0:00:02"]

1. Nf3 {[%clk 0:03:00]}  Nf6 {[%clk 0:02:58]} 2. c4 {[%clk 0:02:59]}  e6 {[%clk 0:02:58]} 3. g3 {[%clk 0:02:59]}  b6 {[%clk 0:02:58]} 4. Bg2 {[%clk 0:02:59]}  Bb7 {[%clk 0:02:59]} 5. O-O {[%clk 0:03:00]}  Be7 {[%clk 0:02:59]} 6. Re1 {[%clk 0:02:58]}  O-O {[%clk 0:02:59]} 7. Nc3 {[%clk 0:02:58]}  d5 {[%clk 0:02:55]} 8. cxd5 {[%clk 0:02:58]}  Nxd5 {[%clk 0:02:46]} 9. e4 {[%clk 0:02:57]}  Nxc3 {[%clk 0:02:45]} 10. bxc3 {[%clk 0:02:57]}  c5 {[%clk 0:02:46]} 11. d4 {[%clk 0:02:57]}  cxd4 {[%clk 0:02:45]} 12. cxd4 {[%clk 0:02:57]}  Nd7 {[%clk 0:02:41]} 13. Bf4 {[%clk 0:02:51]}  Nf6 {[%clk 0:02:40]} 14. Ne5 {[%clk 0:02:50]}  Rc8 {[%clk 0:02:41]} 15. Re3 {[%clk 0:02:36]}  b5 {[%clk 0:02:20]} 16. h4 {[%clk 0:02:32]}  Qb6 {[%clk 0:02:16]} 17. d5 {[%clk 0:01:42]}  Rfd8 {[%clk 0:02:10]} 18. Rd3 {[%clk 0:01:42]}  exd5 {[%clk 0:01:52]} 19. exd5 {[%clk 0:01:42]}  Bd6 {[%clk 0:01:36]} 20. Rb1 {[%clk 0:01:40]}  Qc7 {[%clk 0:01:31]} 21. Nc6 {[%clk 0:00:49]}  Bxc6 {[%clk 0:01:19]} 22. dxc6 {[%clk 0:00:46]}  Bxf4 {[%clk 0:01:18]} 23. gxf4 {[%clk 0:00:46]}  Rxd3 {[%clk 0:01:15]} 24. Qxd3 {[%clk 0:00:46]}  Qxf4 {[%clk 0:01:13]} 25. Rxb5 {[%clk 0:00:45]}  Ng4 {[%clk 0:00:54]} 26. Qg3 {[%clk 0:00:36]}  Qc1+ {[%clk 0:00:40]} 27. Bf1 {[%clk 0:00:36]}  h5 {[%clk 0:00:29]} 28. Rxh5 {[%clk 0:00:34]}  Nf6 {[%clk 0:00:18]} 29. Rg5 {[%clk 0:00:34]}  Ne8 {[%clk 0:00:16]} 30. Re5 {[%clk 0:00:20]}  Qxc6 {[%clk 0:00:16]} 31. Bb5 {[%clk 0:00:21]}  Qc1+ {[%clk 0:00:15]} 32. Kg2 {[%clk 0:00:21]}  Nf6 {[%clk 0:00:16]} 33. Rg5 {[%clk 0:00:21]}  g6 {[%clk 0:00:16]} 34. h5 {[%clk 0:00:20]}  Nh7 {[%clk 0:00:13]} 35. Rd5 {[%clk 0:00:19]}  Nf6 {[%clk 0:00:07]} 36. Re5 {[%clk 0:00:18]}  Qh6 {[%clk 0:00:04]} 37. hxg6 {[%clk 0:00:17]}  fxg6 {[%clk 0:00:05]} 38. Bd3 {[%clk 0:00:17]}  Kf7 {[%clk 0:00:04]} 39. Rg5 {[%clk 0:00:14]}  Re8 {[%clk 0:00:03]} 40. Bxg6+ {[%clk 0:00:14]}  Kf8 {[%clk 0:00:03]} 41. Bxe8 {[%clk 0:00:14]}  Kxe8 {[%clk 0:00:04]} 42. Qe5+ {[%clk 0:00:14]}  Kf7 {[%clk 0:00:03]} 43. Qc7+ {[%clk 0:00:14]}  Kf8 {[%clk 0:00:03]} 44. Qb8+ {[%clk 0:00:14]}  Kf7 {[%clk 0:00:03]} 45. Qxa7+ {[%clk 0:00:14]}  Kf8 {[%clk 0:00:03]} 46. Qc5+ {[%clk 0:00:14]}  Kf7 {[%clk 0:00:03]} 47. Qc7+ {[%clk 0:00:15]}  Kf8 {[%clk 0:00:04]} 48. Qd6+ {[%clk 0:00:15]}  Kf7 {[%clk 0:00:04]} 49. Qg3 {[%clk 0:00:14]}  Ne4 {[%clk 0:00:02]} 50. Qf4+ {[%clk 0:00:14]}  Nf6 {[%clk 0:00:02]} 51. Qg3 {[%clk 0:00:14]}  Ne4 {[%clk 0:00:02]} 52. Qc7+ {[%clk 0:00:13]} 1-0


[Site "https://www.chess.com"]

[Event "Titled Tuesday Blitz October 11 Early 2022"]
[White "Haukenfrers, Dale"]
[Black "Ovezdurdyyeva, Jemal"]
[WhiteFideId "2603780"]
[BlackFideId "14001888"]
[WhiteElo "1966"]
[BlackElo "1961"]
[Result "0-1"]
[Round "05"]
[TimeControl "180+1"]
[Date "2022.10.12"]
[WhiteClock "0:00:14"]
[BlackClock "0:00:19"]

1. c3 {[%clk 0:03:00]}  Nf6 {[%clk 0:02:59]} 2. d3 {[%clk 0:03:01]}  g6 {[%clk 0:02:59]} 3. g3 {[%clk 0:03:02]}  Bg7 {[%clk 0:02:58]} 4. f4 {[%clk 0:03:03]}  d5 {[%clk 0:02:58]} 5. Nf3 {[%clk 0:03:03]}  O-O {[%clk 0:02:57]} 6. Bg2 {[%clk 0:03:02]}  c6 {[%clk 0:02:52]} 7. O-O {[%clk 0:03:02]}  Qb6+ {[%clk 0:02:52]} 8. Kh1 {[%clk 0:03:01]}  Ng4 {[%clk 0:02:51]} 9. Na3 {[%clk 0:02:53]}  Nd7 {[%clk 0:02:33]} 10. Nc2 {[%clk 0:02:52]}  e5 {[%clk 0:02:15]} 11. e4 {[%clk 0:02:49]}  dxe4 {[%clk 0:02:10]} 12. dxe4 {[%clk 0:02:49]}  exf4 {[%clk 0:02:09]} 13. gxf4 {[%clk 0:02:43]}  Ndf6 {[%clk 0:02:06]} 14. Qe2 {[%clk 0:02:27]}  Nh5 {[%clk 0:01:57]} 15. e5 {[%clk 0:02:21]}  c5 {[%clk 0:01:43]} 16. Ng5 {[%clk 0:02:01]}  Bf5 {[%clk 0:01:32]} 17. Ne3 {[%clk 0:01:54]}  Nxe3 {[%clk 0:01:22]} 18. Bxe3 {[%clk 0:01:55]}  Rad8 {[%clk 0:01:20]} 19. Rad1 {[%clk 0:01:49]}  Qa5 {[%clk 0:01:19]} 20. a3 {[%clk 0:01:47]}  Qc7 {[%clk 0:01:13]} 21. Qf3 {[%clk 0:01:40]}  b5 {[%clk 0:01:08]} 22. Qc6 {[%clk 0:01:35]}  Qxc6 {[%clk 0:00:53]} 23. Bxc6 {[%clk 0:01:35]}  Bd3 {[%clk 0:00:53]} 24. Rfe1 {[%clk 0:01:27]}  c4 {[%clk 0:00:51]} 25. Bf3 {[%clk 0:01:22]}  h6 {[%clk 0:00:50]} 26. Ne4 {[%clk 0:01:19]}  Rfe8 {[%clk 0:00:46]} 27. Nd6 {[%clk 0:01:13]}  Re6 {[%clk 0:00:40]} 28. Bxh5 {[%clk 0:01:10]}  gxh5 {[%clk 0:00:41]} 29. Bxa7 {[%clk 0:01:09]}  f6 {[%clk 0:00:38]} 30. Nxb5 {[%clk 0:01:01]}  fxe5 {[%clk 0:00:37]} 31. Nd4 {[%clk 0:00:54]}  Ra6 {[%clk 0:00:28]} 32. fxe5 {[%clk 0:00:48]}  Rxa7 {[%clk 0:00:27]} 33. Nc6 {[%clk 0:00:48]}  Be4+ {[%clk 0:00:24]} 34. Kg1 {[%clk 0:00:45]}  Rxd1 {[%clk 0:00:23]} 35. Rxd1 {[%clk 0:00:45]}  Bxc6 {[%clk 0:00:23]} 36. Rd4 {[%clk 0:00:39]}  Bxe5 {[%clk 0:00:23]} 37. Rxc4 {[%clk 0:00:39]}  Rg7+ {[%clk 0:00:22]} 38. Kf2 {[%clk 0:00:38]}  Rg2+ {[%clk 0:00:21]} 39. Ke3 {[%clk 0:00:38]}  Be8 {[%clk 0:00:18]} 40. Re4 {[%clk 0:00:36]}  Rg5 {[%clk 0:00:17]} 41. h4 {[%clk 0:00:36]}  Rf5 {[%clk 0:00:16]} 42. b4 {[%clk 0:00:33]}  Kf7 {[%clk 0:00:13]} 43. c4 {[%clk 0:00:28]}  Ke6 {[%clk 0:00:13]} 44. c5 {[%clk 0:00:25]}  Rf1 {[%clk 0:00:13]} 45. Rc4 {[%clk 0:00:21]}  Bb5 {[%clk 0:00:11]} 46. Rc2 {[%clk 0:00:20]}  Ra1 {[%clk 0:00:12]} 47. c6 {[%clk 0:00:18]}  Rxa3+ {[%clk 0:00:12]} 48. Kd2 {[%clk 0:00:15]}  Ra7 {[%clk 0:00:12]} 49. c7 {[%clk 0:00:14]}  Rxc7 {[%clk 0:00:12]} 50. Rc5 {[%clk 0:00:13]}  Rxc5 {[%clk 0:00:12]} 51. bxc5 {[%clk 0:00:13]}  Kd5 {[%clk 0:00:13]} 52. Ke3 {[%clk 0:00:13]}  Kxc5 {[%clk 0:00:14]} 53. Ke4 {[%clk 0:00:14]}  Bf6 {[%clk 0:00:14]} 54. Kf5 {[%clk 0:00:14]}  Bxh4 {[%clk 0:00:15]} 55. Kg6 {[%clk 0:00:14]}  Bg5 {[%clk 0:00:15]} 56. Kxh5 {[%clk 0:00:14]}  Be8+ {[%clk 0:00:16]} 57. Kg4 {[%clk 0:00:14]}  Kd6 {[%clk 0:00:17]} 58. Kf5 {[%clk 0:00:14]}  Ke7 {[%clk 0:00:16]} 59. Kg4 {[%clk 0:00:14]}  Kf6 {[%clk 0:00:17]} 60. Kg3 {[%clk 0:00:14]}  Kg6 {[%clk 0:00:18]} 61. Kh3 {[%clk 0:00:14]}  h5 {[%clk 0:00:18]} 62. Kg3 {[%clk 0:00:15]}  Bh6 {[%clk 0:00:19]} 63. Kg2 {[%clk 0:00:15]}  Kg5 {[%clk 0:00:19]} 64. Kg1 {[%clk 0:00:15]}  Kg4 {[%clk 0:00:20]} 65. Kg2 {[%clk 0:00:15]}  h4 {[%clk 0:00:21]} 66. Kh2 {[%clk 0:00:15]}  Bf4+ {[%clk 0:00:20]} 67. Kh1 {[%clk 0:00:15]}  Bc6+ {[%clk 0:00:20]} 68. Kg1 {[%clk 0:00:16]}  Kg3 {[%clk 0:00:20]} 69. Kf1 {[%clk 0:00:15]}  Bb5+ {[%clk 0:00:20]} 70. Kg1 {[%clk 0:00:14]}  Be3+ {[%clk 0:00:19]} 71. Kh1 {[%clk 0:00:14]}  Bc6# {[%clk 0:00:19]} 0-1


[Site "https://www.chess.com"]

[Event "Titled Tuesday Blitz October 11 Early 2022"]
[White "Heinemann, Josefine"]
[Black "Mikhailovsky, Vladimir"]
[WhiteFideId "12900460"]
[BlackFideId "34105414"]
[WhiteElo "2300"]
[BlackElo "2297"]
[Result "0-1"]
[Round "05"]
[TimeControl "180+1"]
[Date "2022.10.12"]
[WhiteClock "0:01:05"]
[BlackClock "0:00:33"]

1. d4 {[%clk 0:03:00]}  d6 {[%clk 0:02:54]} 2. c4 {[%clk 0:02:57]}  e5 {[%clk 0:02:52]} 3. d5 {[%clk 0:02:49]}  g6 {[%clk 0:02:48]} 4. Nc3 {[%clk 0:02:46]}  Bg7 {[%clk 0:02:49]} 5. e4 {[%clk 0:02:40]}  f5 {[%clk 0:02:49]} 6. f3 {[%clk 0:02:35]}  Bh6 {[%clk 0:02:42]} 7. Bxh6 {[%clk 0:02:24]}  Qh4+ {[%clk 0:02:30]} 8. g3 {[%clk 0:02:22]}  Qxh6 {[%clk 0:02:31]} 9. Bd3 {[%clk 0:02:20]}  Nf6 {[%clk 0:02:28]} 10. Nge2 {[%clk 0:02:11]}  Qe3 {[%clk 0:02:20]} 11. Rf1 {[%clk 0:02:03]}  fxe4 {[%clk 0:01:21]} 12. Bxe4 {[%clk 0:01:54]}  Bh3 {[%clk 0:01:14]} 13. Rf2 {[%clk 0:01:52]}  O-O {[%clk 0:01:03]} 14. Qd2 {[%clk 0:01:44]}  Qb6 {[%clk 0:00:36]} 15. g4 {[%clk 0:01:31]}  Nxg4 {[%clk 0:00:35]} 16. fxg4 {[%clk 0:01:06]}  Qxf2+ {[%clk 0:00:35]} 17. Kd1 {[%clk 0:01:05]}  Qf1+ {[%clk 0:00:33]} 0-1


[Site "https://www.chess.com"]

[Event "Titled Tuesday Blitz October 11 Early 2022"]
[White "Horak, Martin"]
[Black "Rosh Jain"]
[WhiteFideId "367095"]
[BlackFideId "25789465"]
[WhiteElo "2091"]
[BlackElo "2233"]
[Result "1-0"]
[Round "05"]
[TimeControl "180+1"]
[Date "2022.10.12"]
[WhiteClock "0:00:06"]
[BlackClock "0:00:01"]

1. d4 {[%clk 0:02:49]}  Nf6 {[%clk 0:02:59]} 2. Bg5 {[%clk 0:02:49]}  Ne4 {[%clk 0:02:57]} 3. h4 {[%clk 0:02:48]}  h6 {[%clk 0:02:55]} 4. Bf4 {[%clk 0:02:48]}  d5 {[%clk 0:02:55]} 5. Nd2 {[%clk 0:02:47]}  Bf5 {[%clk 0:02:53]} 6. e3 {[%clk 0:02:35]}  e6 {[%clk 0:02:51]} 7. g4 {[%clk 0:02:28]}  Bh7 {[%clk 0:02:47]} 8. Nxe4 {[%clk 0:02:27]}  Bxe4 {[%clk 0:02:46]} 9. f3 {[%clk 0:02:27]}  Bh7 {[%clk 0:02:45]} 10. Bd3 {[%clk 0:02:28]}  Be7 {[%clk 0:02:42]} 11. Bxh7 {[%clk 0:02:26]}  Bxh4+ {[%clk 0:02:39]} 12. Kf1 {[%clk 0:02:17]}  Rxh7 {[%clk 0:02:39]} 13. Qd3 {[%clk 0:02:14]}  Rh8 {[%clk 0:02:38]} 14. Qb5+ {[%clk 0:02:08]}  Nd7 {[%clk 0:02:02]} 15. Qxb7 {[%clk 0:01:55]}  Bg5 {[%clk 0:01:52]} 16. Bxg5 {[%clk 0:01:14]}  f6 {[%clk 0:01:24]} 17. Bf4 {[%clk 0:01:09]}  Rb8 {[%clk 0:01:22]} 18. Qxc7 {[%clk 0:01:05]}  Rxb2 {[%clk 0:01:17]} 19. Qxd8+ {[%clk 0:01:03]}  Kxd8 {[%clk 0:01:17]} 20. Rh2 {[%clk 0:00:57]}  Ke7 {[%clk 0:01:11]} 21. c3 {[%clk 0:00:44]}  Rb6 {[%clk 0:00:56]} 22. Rc2 {[%clk 0:00:40]}  e5 {[%clk 0:00:52]} 23. Bg3 {[%clk 0:00:39]}  Rc8 {[%clk 0:00:50]} 24. Rac1 {[%clk 0:00:38]}  Rbc6 {[%clk 0:00:48]} 25. Nh3 {[%clk 0:00:32]}  g5 {[%clk 0:00:40]} 26. Nf2 {[%clk 0:00:30]}  Ke6 {[%clk 0:00:31]} 27. Nd3 {[%clk 0:00:29]}  a5 {[%clk 0:00:29]} 28. Ke2 {[%clk 0:00:27]}  Rc4 {[%clk 0:00:26]} 29. Kd2 {[%clk 0:00:24]}  Ra4 {[%clk 0:00:23]} 30. Rb1 {[%clk 0:00:16]}  Ra3 {[%clk 0:00:18]} 31. Rb3 {[%clk 0:00:15]}  Rxb3 {[%clk 0:00:17]} 32. axb3 {[%clk 0:00:16]}  Rb8 {[%clk 0:00:17]} 33. Rb2 {[%clk 0:00:16]}  Nb6 {[%clk 0:00:14]} 34. Kc2 {[%clk 0:00:15]}  Rc8 {[%clk 0:00:10]} 35. Nc5+ {[%clk 0:00:15]}  Kd6 {[%clk 0:00:09]} 36. Nb7+ {[%clk 0:00:15]}  Kc6 {[%clk 0:00:08]} 37. Nxa5+ {[%clk 0:00:16]}  Kc7 {[%clk 0:00:05]} 38. dxe5 {[%clk 0:00:15]}  fxe5 {[%clk 0:00:04]} 39. Bxe5+ {[%clk 0:00:15]}  Kd7 {[%clk 0:00:04]} 40. b4 {[%clk 0:00:14]}  Ra8 {[%clk 0:00:02]} 41. Nb7 {[%clk 0:00:13]}  Nc4 {[%clk 0:00:02]} 42. Nc5+ {[%clk 0:00:07]}  Ke7 {[%clk 0:00:01]} 43. Bd4 {[%clk 0:00:06]}  Nxb2 {[%clk 0:00:01]} 44. Kxb2 {[%clk 0:00:07]}  Rc8 {[%clk 0:00:01]} 45. Kb3 {[%clk 0:00:07]}  Rh8 {[%clk 0:00:01]} 46. b5 {[%clk 0:00:06]} 1-0


[Site "https://www.chess.com"]

[Event "Titled Tuesday Blitz October 11 Early 2022"]
[White "Ibarra Jerez, Jose Carlos"]
[Black "Nakamura, Hikaru"]
[WhiteFideId "2226332"]
[BlackFideId "2016192"]
[WhiteElo "2627"]
[BlackElo "2909"]
[Result "0-1"]
[Round "05"]
[TimeControl "180+1"]
[Date "2022.10.11"]
[WhiteClock "0:00:01"]
[BlackClock "0:00:26"]

1. e4 {[%clk 0:03:00]}  c6 {[%clk 0:02:53]} 2. Nf3 {[%clk 0:03:00]}  d5 {[%clk 0:02:54]} 3. d3 {[%clk 0:03:01]}  Bg4 {[%clk 0:02:53]} 4. h3 {[%clk 0:03:00]}  Bxf3 {[%clk 0:02:53]} 5. Qxf3 {[%clk 0:03:00]}  e6 {[%clk 0:02:54]} 6. g3 {[%clk 0:03:00]}  g6 {[%clk 0:02:54]} 7. Bg2 {[%clk 0:02:59]}  Bg7 {[%clk 0:02:54]} 8. O-O {[%clk 0:02:59]}  Nf6 {[%clk 0:02:52]} 9. Qe2 {[%clk 0:02:58]}  a5 {[%clk 0:02:48]} 10. Nd2 {[%clk 0:02:54]}  a4 {[%clk 0:02:47]} 11. a3 {[%clk 0:02:55]}  Nbd7 {[%clk 0:02:43]} 12. f4 {[%clk 0:02:47]}  O-O {[%clk 0:02:14]} 13. e5 {[%clk 0:02:40]}  Ne8 {[%clk 0:02:14]} 14. Nf3 {[%clk 0:02:40]}  f6 {[%clk 0:02:10]} 15. d4 {[%clk 0:02:30]}  Nc7 {[%clk 0:02:10]} 16. h4 {[%clk 0:02:26]}  c5 {[%clk 0:02:10]} 17. c3 {[%clk 0:02:26]}  h5 {[%clk 0:02:03]} 18. Qd3 {[%clk 0:02:22]}  f5 {[%clk 0:02:02]} 19. Be3 {[%clk 0:02:20]}  Qe7 {[%clk 0:01:50]} 20. Rf2 {[%clk 0:02:20]}  Rfc8 {[%clk 0:01:42]} 21. Bf1 {[%clk 0:02:20]}  cxd4 {[%clk 0:01:40]} 22. cxd4 {[%clk 0:02:17]}  Nb6 {[%clk 0:01:38]} 23. Bd2 {[%clk 0:02:04]}  Nc4 {[%clk 0:01:36]} 24. Bb4 {[%clk 0:02:00]}  Qd7 {[%clk 0:01:33]} 25. Rc2 {[%clk 0:02:00]}  Bf8 {[%clk 0:01:31]} 26. Be1 {[%clk 0:01:59]}  Ra6 {[%clk 0:01:29]} 27. Nd2 {[%clk 0:01:58]}  b5 {[%clk 0:01:28]} 28. Nf3 {[%clk 0:01:55]}  Rc6 {[%clk 0:01:27]} 29. Qd1 {[%clk 0:01:31]}  Na6 {[%clk 0:01:23]} 30. Qe2 {[%clk 0:00:50]}  Qa7 {[%clk 0:01:19]} 31. Qf2 {[%clk 0:00:49]}  Be7 {[%clk 0:01:16]} 32. Rac1 {[%clk 0:00:48]}  Bd8 {[%clk 0:01:16]} 33. Bxc4 {[%clk 0:00:42]}  bxc4 {[%clk 0:01:00]} 34. Bc3 {[%clk 0:00:35]}  Bb6 {[%clk 0:00:58]} 35. Kh2 {[%clk 0:00:29]}  Rb8 {[%clk 0:00:55]} 36. Rg1 {[%clk 0:00:29]}  Nc7 {[%clk 0:00:52]} 37. Ng5 {[%clk 0:00:26]}  Nb5 {[%clk 0:00:51]} 38. Rd2 {[%clk 0:00:27]}  Bd8 {[%clk 0:00:49]} 39. Bb4 {[%clk 0:00:15]}  Bb6 {[%clk 0:00:44]} 40. Nf3 {[%clk 0:00:11]}  Ba5 {[%clk 0:00:44]} 41. Bxa5 {[%clk 0:00:08]}  Qxa5 {[%clk 0:00:45]} 42. Rc2 {[%clk 0:00:08]}  Nc7 {[%clk 0:00:44]} 43. Rgc1 {[%clk 0:00:09]}  Rb3 {[%clk 0:00:44]} 44. Nd2 {[%clk 0:00:07]}  Rd3 {[%clk 0:00:44]} 45. Rc3 {[%clk 0:00:04]}  Rxc3 {[%clk 0:00:42]} 46. bxc3 {[%clk 0:00:04]}  Rb6 {[%clk 0:00:41]} 47. Rb1 {[%clk 0:00:05]}  Nb5 {[%clk 0:00:35]} 48. Qe3 {[%clk 0:00:04]}  Nxa3 {[%clk 0:00:33]} 49. Rxb6 {[%clk 0:00:04]}  Qxb6 {[%clk 0:00:34]} 50. Qe1 {[%clk 0:00:04]}  Qb2 {[%clk 0:00:34]} 51. Kh3 {[%clk 0:00:03]}  Nc2 {[%clk 0:00:30]} 52. Qd1 {[%clk 0:00:04]}  a3 {[%clk 0:00:29]} 53. Nb1 {[%clk 0:00:01]}  Ne3 {[%clk 0:00:26]} 54. Qa4 {[%clk 0:00:01]}  Qg2# {[%clk 0:00:26]} 0-1


[Site "https://www.chess.com"]

[Event "Titled Tuesday Blitz October 11 Early 2022"]
[White "Jovic, Stanoje"]
[Black "Mrudul Dehankar"]
[WhiteFideId "905020"]
[BlackFideId "25096990"]
[WhiteElo "2238"]
[BlackElo "2068"]
[Result "0-1"]
[Round "05"]
[TimeControl "180+1"]
[Date "2022.10.12"]
[WhiteClock "0:00:03"]
[BlackClock "0:00:07"]

1. c4 {[%clk 0:03:00]}  e5 {[%clk 0:02:58]} 2. g3 {[%clk 0:03:01]}  Nf6 {[%clk 0:02:58]} 3. Bg2 {[%clk 0:03:01]}  d5 {[%clk 0:02:58]} 4. cxd5 {[%clk 0:02:59]}  Nxd5 {[%clk 0:02:59]} 5. Nf3 {[%clk 0:02:59]}  Nc6 {[%clk 0:02:59]} 6. O-O {[%clk 0:02:59]}  Be7 {[%clk 0:02:57]} 7. d4 {[%clk 0:02:58]}  e4 {[%clk 0:02:50]} 8. Ne5 {[%clk 0:02:58]}  f5 {[%clk 0:02:14]} 9. Nxc6 {[%clk 0:02:58]}  bxc6 {[%clk 0:02:15]} 10. Qc2 {[%clk 0:02:58]}  Qd6 {[%clk 0:02:01]} 11. Nd2 {[%clk 0:02:55]}  Ba6 {[%clk 0:01:16]} 12. Nc4 {[%clk 0:02:53]}  Qe6 {[%clk 0:01:15]} 13. b3 {[%clk 0:02:38]}  O-O {[%clk 0:01:13]} 14. Bb2 {[%clk 0:02:33]}  c5 {[%clk 0:01:04]} 15. dxc5 {[%clk 0:02:29]}  Bxc5 {[%clk 0:01:05]} 16. Rac1 {[%clk 0:02:13]}  Nb6 {[%clk 0:01:02]} 17. Ne3 {[%clk 0:01:59]}  Bd6 {[%clk 0:01:00]} 18. Rfd1 {[%clk 0:01:57]}  Rad8 {[%clk 0:00:56]} 19. a4 {[%clk 0:01:53]}  f4 {[%clk 0:00:21]} 20. gxf4 {[%clk 0:01:29]}  Rxf4 {[%clk 0:00:19]} 21. a5 {[%clk 0:01:18]}  Nd7 {[%clk 0:00:16]} 22. Rxd6 {[%clk 0:00:58]}  cxd6 {[%clk 0:00:15]} 23. Qc7 {[%clk 0:00:57]}  Rdf8 {[%clk 0:00:14]} 24. Rc6 {[%clk 0:00:46]}  Rc8 {[%clk 0:00:12]} 25. Qxc8+ {[%clk 0:00:39]}  Bxc8 {[%clk 0:00:11]} 26. Rxc8+ {[%clk 0:00:40]}  Rf8 {[%clk 0:00:10]} 27. Rc7 {[%clk 0:00:33]}  Qxb3 {[%clk 0:00:08]} 28. Bxg7 {[%clk 0:00:27]}  Kxg7 {[%clk 0:00:02]} 29. Rxd7+ {[%clk 0:00:27]}  Rf7 {[%clk 0:00:03]} 30. Rxf7+ {[%clk 0:00:17]}  Kxf7 {[%clk 0:00:03]} 31. Bxe4 {[%clk 0:00:17]}  Qa3 {[%clk 0:00:03]} 32. Bxh7 {[%clk 0:00:11]}  Qa1+ {[%clk 0:00:04]} 33. Kg2 {[%clk 0:00:10]}  Qg7+ {[%clk 0:00:04]} 34. Kf3 {[%clk 0:00:10]}  Qxh7 {[%clk 0:00:04]} 35. Ng4 {[%clk 0:00:09]}  Qb1 {[%clk 0:00:03]} 36. h4 {[%clk 0:00:08]}  Qb3+ {[%clk 0:00:04]} 37. e3 {[%clk 0:00:08]}  Qb7+ {[%clk 0:00:03]} 38. Kg3 {[%clk 0:00:08]}  Qb5 {[%clk 0:00:04]} 39. f4 {[%clk 0:00:06]}  Qxa5 {[%clk 0:00:04]} 40. e4 {[%clk 0:00:06]}  Qc5 {[%clk 0:00:04]} 41. e5 {[%clk 0:00:05]}  a5 {[%clk 0:00:05]} 42. h5 {[%clk 0:00:04]}  Qc3+ {[%clk 0:00:04]} 43. Kh4 {[%clk 0:00:04]}  dxe5 {[%clk 0:00:05]} 44. Nxe5+ {[%clk 0:00:03]}  Kg7 {[%clk 0:00:05]} 45. Kg5 {[%clk 0:00:04]}  Qg3+ {[%clk 0:00:06]} 46. Ng4 {[%clk 0:00:03]}  a4 {[%clk 0:00:06]} 47. h6+ {[%clk 0:00:03]}  Kh7 {[%clk 0:00:07]} 48. f5 {[%clk 0:00:04]}  Qd6 {[%clk 0:00:06]} 49. Nf6+ {[%clk 0:00:03]}  Kh8 {[%clk 0:00:07]} 0-1


[Site "https://www.chess.com"]